[Event "II Duchamp Open 2018"]
[Site "Rio de Janeiro"]
[Date "2018.11.15"]
[Round "2"]
[White "Chaves, Jorge Antonio Torre"]
[Black "Ferreira, Kleber Victor"]
[Result "1-0"]
[ECO "C48"]
[WhiteElo "1922"]
[BlackElo "2053"]
[Annotator "NA RC"]
[PlyCount "81"]
[EventDate "2018.11.14"]
[EventType "swiss"]
[EventCountry "BRA"]
[SourceTitle "playchess.com"]
[Source "ChessBase"]
[SourceQuality "1"]
[TimeControl "5400+30"]

{[%evp 9,81,16,21,1,59,59,99,52,42,43,63,45,55,43,75,77,141,28,61,25,72,65,75,-13,22,-12,0,-17,139,147,157,16,91,40,77,62,75,75,84,45,69,0,109,104,359,238,217,88,264,87,97,63,183,147,157,46,42,38,45,6,42,14,57,0,293,293,319,275,1360,1374,29997,29998,29998,29999]} 1. e4 {[%emt 0:00:00]} e5 {[%emt 0:00:00]} 2. Nc3 {[%emt 0:00:05]} Nc6 {[%emt 0:00:00]} 3. Nf3 {[%emt 0:00:24]} Nf6 {[%emt 0:00:00]} 4. Bb5 {[%emt 0:00:09]} Nd4 {[%emt 0:00:15]} 5. Bc4 {[%emt 0:12:33]} c6 {[%emt 0:20:18] C48: Four Knights: 4 Bb5, replies other than 4...Bb4} (5... Bc5 6. d3 d6 7. Na4 b5 8. Nxd4 bxc4 9. Nf5 Bxf5 10. exf5 cxd3 11. Nxc5 dxc5 12. cxd3 Qd7 13. Qf3 O-O 14. Bg5 Rab8 {½-½ (30) Kovalev,V (2664)-Ragger,M (2686) Batumi 2018}) 6. O-O {[%emt 0:05:09]} d5 {[%emt 0:07:55]} (6... d6 $11) 7. exd5 $1 {[%emt 0:02:42]} cxd5 {[%emt 0:01:19] LiveBook: 3 Games} 8. Nxd4 {[%emt 0:03:16]} dxc4 {[%emt 0:00:49]} 9. Nf3 {[%emt 0:04:13]} Bd6 {[%emt 0:05:03]} 10. d3 {[%emt 0:07:04]} O-O $146 {[%emt 0:10:11]} ({Predecessor:} 10... Be6 11. Bg5 Qa5 12. dxc4 O-O-O 13. Qe2 {1-0 (35) Bagi,M (2443)-Kiremitciyan,A (2194) Prague 2017}) 11. Bg5 {[%emt 0:00:43]} h6 {[%emt 0:21:58]} 12. Bxf6 {[%emt 0:01:10]} gxf6 {[%emt 0:00:18]} (12... Qxf6 $142 13. dxc4 Rd8) 13. Nh4 {[%emt 0:01:37]} (13. dxc4 $16 Be6 14. Qd2) 13... f5 $1 {[%emt 0:00:56]} 14. g3 {[%emt 0:01:54]} Be6 {[%emt 0:06:05]} 15. Qf3 {[%emt 0:00:47]} cxd3 {[%emt 0:01:14]} 16. cxd3 {[%emt 0:00:45]} (16. Nxf5 $16 Qf6 17. g4 Bxf5 18. cxd3) 16... Qd7 {[%emt 0:02:07]} 17. Rfe1 {[%emt 0:09:53]} Rad8 {[%emt 0:03:53]} 18. Rad1 {[%emt 0:01:32]} Kh7 $2 {[%emt 0:02:33] [#]} ({Lieber} 18... f4 $11) 19. d4 $1 {[%emt 0:03:39]} e4 {[%emt 0:04:10]} 20. Qe3 {[%emt 0:03:24]} ({Lieber} 20. Qh5 $16) 20... Bc4 {[%emt 0:03:27] [#]} 21. Ng2 {[%emt 0:01:29]} (21. b3 $1 $16 {[%cal Rb3c4]} Ba6 22. Nd5) 21... Rg8 {[%emt 0:00:36]} 22. b3 {[%emt 0:00:49]} Bd3 {[%emt 0:01:12]} 23. Nd5 {[%emt 0:03:14]} Kg7 {[%emt 0:03:12]} 24. Rc1 {[%emt 0:07:47]} Bb5 {[%emt 0:00:43]} 25. Red1 {[%emt 0:00:58]} ({Günstiger ist} 25. a4 $14 Ba6 26. Rcd1) 25... Bc6 {[%emt 0:01:27] [#]} (25... Ba3 $11 {keeps the balance.} 26. Ngf4 Bxc1 27. Rxc1 Qd6) 26. Ndf4 $1 {[%emt 0:01:04]} Be7 $2 {[%emt 0:01:25]} (26... Qe7 $16) 27. Nh5+ {[%emt 0:05:21]} Kh7 {[%emt 0:00:09] [#]} 28. Ngf4 $2 {[%emt 0:02:14]} (28. d5 $1 $18 {ist der präzise Gewinnweg.}) 28... Bg5 {[%emt 0:00:20]} (28... Qd6 $16 {is a better defense.}) 29. Rc5 $2 {[%emt 0:02:33]} (29. d5 $1 $18 {[%cal Rd5c6] and the rest is easy.} Bb5 30. a4 (30. Qxa7 Ra8 $18)) 29... b6 {[%emt 0:00:14]} 30. Rc3 {[%emt 0:00:38]} Rc8 {[%emt 0:01:05]} (30... Qd6 $14) 31. Rdc1 {[%emt 0:01:45]} Bb7 {[%emt 0:00:31] [#]} 32. Rxc8 {[%emt 0:01:09]} (32. d5 $1 $16) 32... Rxc8 {[%emt 0:00:02]} 33. Rxc8 {[%emt 0:00:20]} Qxc8 {[%emt 0:00:14]} 34. h4 {[%emt 0:00:42]} (34. Qd2 $14) 34... Be7 {[%emt 0:00:02]} 35. Qd2 {[%emt 0:05:52]} a5 {[%emt 0:02:24]} 36. d5 {[%emt 0:01:57]} (36. Ng2 $16) 36... Bb4 $2 {[%emt 0:00:23] [#]} (36... Qh8 $1 $11 {and Black stays safe.}) 37. Nf6+ $1 {[%emt 0:06:37]} ({Less strong is} 37. Qd4 Qc3 $16) 37... Kh8 {[%emt 0:00:30]} 38. Qd4 $1 {[%emt 0:01:48]} Qc5 $2 {[%emt 0:01:25]} (38... Bc3 39. Qxb6 e3 40. fxe3 Be5) 39. Qe5 {[%emt 0:00:29]} Qc3 {[%emt 0:01:13]} 40. Qe8+ {[%emt 0:00:16]} Kg7 {[%emt 0:00:21]} 41. N4h5+ {[%emt 0:00:14]} 1-0

[Event "II Duchamp Open 2018"]
[Site "Rio de Janeiro"]
[Date "2018.11.14"]
[Round "2"]
[White "Goncalves, Luiz Osvaldo Cifuen"]
[Black "Manzi, Luiz Antonio Bardar"]
[Result "0-1"]
[ECO "C26"]
[WhiteElo "1813"]
[BlackElo "2047"]
[Annotator "NA RC"]
[PlyCount "170"]
[EventDate "2018.11.14"]
[EventType "swiss"]
[EventCountry "BRA"]
[SourceTitle "playchess.com"]
[Source "ChessBase"]
[SourceQuality "1"]
[TimeControl "5400+30"]

{[%evp 9,169,3,1,1,20,-9,-8,-31,17,19,31,0,0,0,0,-4,0,-19,-20,-34,-4,-67,-13,-71,-55,-83,-56,-44,-29,-40,0,0,0,-69,-8,-70,-31,-32,-39,-71,-58,-106,-52,-74,-35,-70,-58,-81,-51,-64,-53,-102,-85,-86,-122,-146,-108,-125,-113,-122,-112,-252,-196,-235,32767,32767,32767,-226,-291,-337,-189,-216,-146,-206,-230,-231,-114,-191,-9,-16,-15,-17,0,-170,-184,-241,-114,-259,-351,-391,-504,-357,-483,-441,-602,-719,-719,-677,-374,-454,-62,-108,0,-8,0,0,473,0,0,0,0,-7,0,0,0,0,0,0,0,0,0,0,0,0,0,0,0,0,0,-8,0,0,0,0,0,0,0,0,0,-12851,32767,32767,32767,32767,32767,32767,32767,32767,32767,32767,32767,-12851,-11235,-29980,-29983,-29985,-29982,-29982,-29981,-29994,-29995,-29999]} 1. e4 {[%emt 0:00:00]} Nf6 {[%emt 0:00:00]} 2. Nc3 {[%emt 0:00:00]} e5 {[%emt 0:00:52]} 3. Bc4 {[%emt 0:00:05]} Bb4 {[%emt 0:01:10]} 4. d3 {[%emt 0:00:16]} O-O {[%emt 0:00:49]} 5. Nf3 {[%emt 0:00:15] LiveBook: 9 Partien} c6 {[%emt 0:01:45]} 6. O-O {[%emt 0:00:18]} d5 {[%emt 0:01:01] C42: Russische Verteidigung (Petrow)} (6... d6 7. a3 Ba5 8. Ba2 Be6 9. Ne2 Nbd7 10. Ng3 Re8 11. Nh4 d5 12. Nhf5 Nf8 13. Qf3 dxe4 14. dxe4 Bxa2 15. Rxa2 {1-0 (27) Aronian,L (2648)-Rabiega,R (2527) playchess.com INT 2004}) 7. exd5 {[%emt 0:00:44]} cxd5 {[%emt 0:00:08]} 8. Bb3 $1 {[%emt 0:00:20]} Bxc3 {[%emt 0:03:06]} 9. bxc3 {[%emt 0:00:11]} Nc6 {[%emt 0:01:15]} 10. h3 {[%emt 0:00:44]} h6 $146 {[%emt 0:01:51]} ({Vorgänger:} 10... Bf5 11. Bg5 Qd6 12. Bxf6 Qxf6 13. Bxd5 Rad8 14. Bxc6 bxc6 {1-0 (39) Braskin,I-Hofmann,W ICCF corr 1990}) 11. Re1 {[%emt 0:00:20]} Re8 {[%emt 0:01:47]} 12. Ba4 {[%emt 0:01:56]} Qd6 {[%emt 0:02:20]} 13. d4 {[%emt 0:07:05]} e4 {[%emt 0:02:38]} 14. Ne5 {[%emt 0:00:25]} Nd7 {[%emt 0:03:05]} 15. f4 {[%emt 0:03:39]} Nb6 {[%emt 0:01:50]} (15... exf3 $5 16. Nxf3 Nf6 $11) 16. Bb3 {[%emt 0:00:54]} f6 {[%emt 0:03:02]} 17. Ng4 {[%emt 0:00:28]} Bxg4 {[%emt 0:00:52]} 18. Qxg4 {[%emt 0:00:15]} Na5 {[%emt 0:02:58]} 19. f5 {[%emt 0:01:16]} Kf8 {[%emt 0:01:28]} (19... Kh8 $17) 20. Bf4 {[%emt 0:01:41]} Qd7 {[%emt 0:00:45]} 21. Qg6 {[%emt 0:01:25]} ({Better is} 21. Re3 $1 $11) 21... Qf7 {[%emt 0:03:11]} (21... Nbc4 $15) 22. Qg3 {[%emt 0:07:10]} (22. Qxf7+ $11 Kxf7 23. Rab1) 22... Nac4 {[%emt 0:02:01]} 23. a4 {[%emt 0:00:50]} a5 {[%emt 0:01:44]} 24. Bd6+ {[%emt 0:00:48]} Kg8 {[%emt 0:00:30]} 25. Bf4 {[%emt 0:00:50]} Qh5 {[%emt 0:00:58]} 26. Rf1 {[%emt 0:02:32]} Rac8 {[%emt 0:00:29]} 27. Rae1 {[%emt 0:03:16]} Rc6 {[%emt 0:01:37]} 28. Qh2 {[%emt 0:02:47]} Rec8 {[%emt 0:01:41]} 29. g4 {[%emt 0:00:13]} Qe8 {[%emt 0:01:33]} 30. Qe2 {[%emt 0:02:20]} Qd7 {[%emt 0:01:35]} 31. Qg2 {[%emt 0:02:36]} Kh8 {[%emt 0:02:26]} 32. Kh1 {[%emt 0:00:28]} Nb2 {[%emt 0:01:12]} 33. Ra1 {[%emt 0:05:11]} Rxc3 {[%emt 0:00:58]} 34. Bd2 {[%emt 0:00:19] [#]} R3c6 $1 {[%emt 0:01:32]} ({Much worse is} 34... N2xa4 $6 35. Bxc3 Nxc3 36. Rxa5 $15) 35. Bxa5 {[%emt 0:00:17]} (35. Bf4 $17) 35... N2c4 {[%emt 0:00:44]} 36. Bxb6 (36. Bd2 {[%emt 0:01:30]}) 36... Nxb6 37. Qd2 {[%emt 0:01:41]} Nc4 {[%emt 0:00:24]} 38. Qe1 {[%emt 0:05:50]} Qd6 {[%emt 0:01:56]} 39. a5 {[%emt 0:00:27]} Ra6 {[%emt 0:03:00]} (39... Na3 $142 40. c4 Nxc4) 40. Kg2 {[%emt 0:02:13]} Qc6 {[%emt 0:01:15]} 41. Ba4 {[%emt 0:01:23]} Qc7 {[%emt 0:00:19]} 42. Bb3 {[%emt 0:01:16]} Rca8 {[%emt 0:00:48]} (42... Kh7 $19 43. Rf2 Qd8) 43. Rf2 {[%emt 0:01:19]} (43. Qe2 $17 {is a better defense.}) 43... Rxa5 $2 {[%emt 0:01:29]} (43... b6 $19 44. Qe2 b5) 44. Rxa5 {[%emt 0:00:14]} Qxa5 {[%emt 0:00:51]} 45. Qxa5 {[%emt 0:00:38]} Rxa5 {[%emt 0:00:15]} 46. Re2 $2 {[%emt 0:00:35]} (46. Bxc4 $1 $11 {and White stays safe.} dxc4 47. Re2) 46... b5 {[%emt 0:00:25]} 47. Kf2 {[%emt 0:01:15]} (47. Re1 {war einen Versuch wert.}) 47... Kg8 {[%emt 0:00:13]} (47... Ra1 $19 {has better winning chances.} 48. Re1 Ra3) 48. Bxc4 {[%emt 0:00:51]} (48. Re1 $17) 48... bxc4 {[%emt 0:00:08]} 49. Kg3 {[%emt 0:03:20]} (49. c3 $142) 49... Ra3+ {[%emt 0:00:16]} 50. Kh4 {[%emt 0:00:04]} Rc3 {[%emt 0:00:45]} 51. Rh2 {[%emt 0:01:11]} Kf7 {[%emt 0:01:08]} 52. Kh5 {[%emt 0:00:12]} Rf3 {[%emt 0:00:46]} 53. h4 {[%emt 0:00:09]} e3 {[%emt 0:01:08]} (53... c3 $142 54. Rg2 {[#]} Rd3 $1 {[%mdl 512]}) 54. Re2 {[%emt 0:00:20]} Rf4 $2 {[%emt 0:01:33]} (54... Rg3 $19 55. c3 Kf8) 55. Rxe3 {[%emt 0:00:58]} Rxd4 {[%emt 0:00:10]} 56. Ra3 {[%emt 0:00:31]} Kg8 {[%emt 0:01:15]} 57. g5 {[%emt 0:00:47]} fxg5 $2 {[%emt 0:02:25] [#]} (57... hxg5 $11 {and Black stays safe.} 58. Kg6 Kf8 59. hxg5 Rg4 60. Ra8+ Ke7 61. Ra7+ Kd6 62. Rxg7 Rxg5+ 63. Kxf6 Rh5) 58. hxg5 $2 {[%emt 0:00:19]} (58. Kg6 $1 $18 {[%cal Ra3a8]} Kf8 59. Ra8+ Ke7 60. Kxg7) 58... hxg5 {[%emt 0:00:51]} 59. Kg6 {[%emt 0:00:13]} Kf8 {[%emt 0:00:09]} 60. Ra8+ {[%emt 0:00:03]} Ke7 {[%emt 0:00:12]} 61. Kxg7 {[%emt 0:00:47]} Rf4 {[%emt 0:00:28]} 62. Ra7+ {[%emt 0:02:24]} Kd6 {[%emt 0:00:09]} 63. f6 {[%emt 0:00:22]} Ke5 {[%emt 0:00:17]} 64. f7 {[%emt 0:00:38]} Kd4 {[%emt 0:00:06]} 65. Ra3 {[%emt 0:00:39]} Ke4 {[%emt 0:01:38]} 66. f8=Q Rxf8 {[%emt 0:00:17]} 67. Kxf8 {[%emt 0:00:40]} d4 {[%emt 0:00:12]} 68. Ra4 {[%emt 0:01:01]} c3 {[%emt 0:00:06]} 69. Kf7 {[%emt 0:00:32]} g4 {[%emt 0:00:38]} 70. Ra1 {[%emt 0:01:00]} d3 {[%emt 0:02:30]} 71. Re1+ {[%emt 0:00:40]} Kd4 {[%emt 0:00:07]} 72. cxd3 {[%emt 0:00:18]} Kxd3 {[%emt 0:00:08]} 73. Rg1 {[%emt 0:00:04]} c2 {[%emt 0:00:11]} 74. Rg3+ $2 {[%emt 0:01:37]} (74. Kg6 $11) 74... Kd2 {[%emt 0:00:09]} 75. Rg2+ {[%emt 0:00:24]} Kc3 {[%emt 0:00:06]} 76. Rxg4 c1=Q {[%emt 0:00:13]} 77. Rg6 {[%emt 0:01:13]} Kd4 {[%emt 0:00:21]} 78. Rd6+ {[%emt 0:00:22]} Ke5 {[%emt 0:00:13]} 79. Re6+ {[%emt 0:00:19]} Kd5 {[%emt 0:00:09]} 80. Rf6 {[%emt 0:01:44]} Qg5 {[%emt 0:00:17]} 81. Rf1 {[%emt 0:03:16]} Qh5+ {[%emt 0:00:40]} 82. Kf8 {[%emt 0:00:15]} Kd6 {[%emt 0:03:18]} 83. Rf6+ {[%emt 0:00:47]} Kd7 {[%emt 0:00:47]} 84. Rf7+ {[%emt 0:02:48]} Ke6 {[%emt 0:00:11]} 85. Rf1 {[%emt 0:00:43]} Qh8# {[%emt 0:00:08] Rf7 Kd7# Rf6 Qh5 Rg6 Qh8+} 0-1

[Event "II Duchamp Open 2018"]
[Site "Rio de Janeiro"]
[Date "2018.11.16"]
[Round "3"]
[White "Maia, Jose Eduardo Bastos"]
[Black "Nascimento, Pedro Henrique Alve"]
[Result "1-0"]
[ECO "C00"]
[WhiteElo "2093"]
[BlackElo "2007"]
[Annotator "NA RC"]
[PlyCount "67"]
[EventDate "2018.11.14"]
[EventType "swiss"]
[EventCountry "BRA"]
[SourceTitle "playchess.com"]
[Source "ChessBase"]
[SourceQuality "1"]
[TimeControl "5400+30"]

{[%evp 8,67,2,32767,32767,32767,32767,32767,0,5,14,-11,26,27,62,57,65,38,79,52,58,69,68,53,84,71,85,80,91,101,79,120,136,133,139,119,137,156,127,106,119,146,291,289,302,272,289,354,321,353,364,372,324,354,378,400,480,500,525,648,612,715]} 1. e4 {[%emt 0:00:00]} e6 {[%emt 0:01:53]} 2. d3 {[%emt 0:00:36]} c5 {[%emt 0:00:17]} 3. Nf3 {[%emt 0:00:04]} Nc6 {[%emt 0:00:27]} 4. g3 {[%emt 0:00:02]} g6 {[%emt 0:00:15]} 5. Bg2 {[%emt 0:00:20]} Bg7 {[%emt 0:00:09]} 6. O-O {[%emt 0:00:13]} Nge7 {[%emt 0:00:09]} 7. c3 {[%emt 0:00:10]} e5 {[%emt 0:02:56] LiveBook: 240 Games A04: Unusual lines after 1 Nf3 and King's Indian Attack} (7... d5 8. Qe2 O-O 9. h4 e5 10. h5 Bg4 11. h6 Bh8 12. Na3 d4 13. Bd2 a6 14. c4 Qd7 15. Qe1 Rae8 16. Nh2 Bh3 {0-1 (44) Jones,G (2677)-Lenderman,A (2630) chess.com INT 2018}) 8. a4 {[%emt 0:01:07]} d6 {[%emt 0:00:18]} 9. Na3 {[%emt 0:00:18]} Bg4 $146 {[%emt 0:00:29]} ({Predecessor:} 9... O-O 10. Bg5 h6 11. Bxe7 Nxe7 12. Nc4 Be6 13. a5 Qc7 14. Qa4 f5 15. a6 {1-0 (41) Mortensen,E (2424)-El Kher,H (2338) Aarhus 1999}) 10. h3 {[%emt 0:03:20]} Bxf3 {[%emt 0:00:13]} 11. Bxf3 {[%emt 0:00:41]} O-O {[%emt 0:00:24]} 12. Nc2 {[%emt 0:01:24]} Qb6 {[%emt 0:04:14]} 13. b4 {[%emt 0:04:20]} cxb4 {[%emt 0:11:30]} 14. Be3 {[%emt 0:01:39]} Qd8 {[%emt 0:05:32]} 15. cxb4 {[%emt 0:06:58]} f5 {[%emt 0:01:34]} 16. b5 {[%emt 0:15:42]} Na5 {[%emt 0:00:47]} 17. Rb1 {[%emt 0:17:26]} d5 {[%emt 0:05:01]} 18. exd5 {[%emt 0:06:45]} Nxd5 {[%emt 0:00:36]} 19. Bd2 {[%emt 0:00:17]} Nf6 {[%emt 0:05:00] Decoy} 20. Bb4 {[%emt 0:10:26]} Rf7 {[%emt 0:02:31]} 21. Ne3 {[%emt 0:02:29]} Rb8 {[%emt 0:02:15]} 22. Qe1 {[%emt 0:05:16]} b6 {[%emt 0:01:58] [#]} 23. Bxa5 $1 {[%emt 0:00:55]} bxa5 {[%emt 0:00:06]} 24. Nc4 {[%emt 0:00:15]} Re7 $2 {[%emt 0:00:56]} (24... Rc8 $16) 25. Nxa5 {[%emt 0:03:59]} ({Wrong is} 25. Nxe5 $2 Ne8 $19) 25... Qxd3 {[%emt 0:04:09]} 26. Be2 {[%emt 0:02:11]} Qc2 {[%emt 0:01:03]} 27. Nc6 {[%emt 0:00:35]} Reb7 {[%emt 0:00:32]} 28. Nxb8 {[%emt 0:00:27]} Rxb8 {[%emt 0:00:05]} 29. Qd1 {[%emt 0:00:40]} Qc5 {[%emt 0:00:35]} 30. Rc1 {[%emt 0:00:36]} Qe7 {[%emt 0:00:47]} 31. Rc6 {[%emt 0:01:17]} Rd8 {[%emt 0:01:20]} 32. Qc1 {[%emt 0:00:42]} h6 {[%emt 0:01:01]} 33. Rc7 {[%emt 0:01:03]} Qb4 $18 {[%emt 0:00:20]} 34. Qc4+ {[%emt 0:00:26]} 1-0

[Event "II Duchamp Open 2018"]
[Site "Rio de Janeiro"]
[Date "2018.11.16"]
[Round "3"]
[White "Santos Filho, Tadeu Sousa"]
[Black "Moyses Sobrinho, Elias"]
[Result "1-0"]
[ECO "A45"]
[WhiteElo "2078"]
[BlackElo "1931"]
[Annotator "NA RC"]
[PlyCount "89"]
[EventDate "2018.11.14"]
[EventType "swiss"]
[EventCountry "BRA"]
[SourceTitle "playchess.com"]
[Source "ChessBase"]
[SourceQuality "1"]
[TimeControl "5400+30"]

{[%evp 8,89,42,51,48,53,69,43,50,40,56,49,70,36,110,0,177,-28,171,12,37,14,169,52,122,181,150,161,218,270,270,279,299,231,216,224,310,239,303,294,306,298,294,313,304,320,298,275,294,260,272,300,302,259,298,325,321,312,449,442,493,343,668,744,684,789,710,814,899,981,900,781,858,1333,5289,1615,1194,1882,6111,29957,29980,32767,6227,29981]} 1. d4 {[%emt 0:00:00]} Nf6 {[%emt 0:00:00]} 2. Bg5 {[%emt 0:00:00]} Ne4 {[%emt 0:00:16]} 3. Bf4 {[%emt 0:00:00]} c5 {[%emt 0:00:25]} 4. d5 {[%emt 0:00:13]} d6 {[%emt 0:00:07]} 5. f3 {[%emt 0:00:44]} Nf6 {[%emt 0:00:06]} 6. e4 {[%emt 0:00:31] LiveBook: 63 Games} Nbd7 {[%emt 0:00:28] A45: Trompowsky Attack} (6... g6 7. Nc3 Bg7 8. Qd2 a6 9. a4 Nbd7 10. Bh6 Bxh6 11. Qxh6 Qa5 12. Ra3 Nb6 13. Be2 Bd7 14. Qd2 g5 15. h4 {0-1 (63) Moiseenko,A (2667)-Melkumyan,H (2633) Riadh 2017}) 7. Qd2 {[%emt 0:02:45]} g6 {[%emt 0:00:32]} 8. c4 {[%emt 0:04:07]} Bg7 {[%emt 0:00:11]} 9. Nc3 {[%emt 0:02:40]} O-O {[%emt 0:00:08]} 10. Bh6 {[%emt 0:01:01]} Qb6 $146 {[%emt 0:00:53]} ({Black should play} 10... Bxh6 $14 11. Qxh6 Rb8) ({Predecessor:} 10... a6 11. h4 Re8 12. Bxg7 Kxg7 13. h5 Ng8 14. g4 {1-0 (26) Gohil,H (2298)-Nagel,N (1779) Frankfurt 2012}) 11. O-O-O {[%emt 0:02:47]} ({Better is} 11. Bxg7 $16 Kxg7 12. f4) 11... Ne5 $2 {[%emt 0:01:05]} (11... Bxh6 $11 12. Qxh6 Qb4) 12. Kc2 $2 {[%emt 0:06:06]} ({White has to play} 12. Bxg7 $18 Kxg7 13. f4) 12... a5 $2 {[%emt 0:00:42] [#]} (12... Bxh6 $15 {keeps the upper hand.} 13. Qxh6 Qb4) 13. a4 $2 {[%emt 0:00:39]} ({White must play} 13. Bxg7 $1 $18 Kxg7 14. f4) 13... Qb4 {[%emt 0:00:16] [#]} 14. b3 {[%emt 0:00:18]} (14. Bxg7 $1 $16 Kxg7 15. b3) 14... Nfd7 {[%emt 0:02:24]} (14... Bxh6 $14 15. Qxh6 Rd8) 15. h3 {[%emt 0:04:43]} (15. Bxg7 $18 Kxg7 16. f4) 15... f5 {[%emt 0:03:02]} ({Better is} 15... b5 $14) 16. Bxg7 {[%emt 0:02:34]} Kxg7 {[%emt 0:00:08]} 17. f4 {[%emt 0:00:17]} Nf7 {[%emt 0:00:38] [#]} 18. exf5 $1 {[%emt 0:01:23]} gxf5 {[%emt 0:00:23]} 19. Re1 {[%emt 0:01:32]} Re8 {[%emt 0:01:47]} 20. Nb5 {[%emt 0:03:36]} Qxd2+ {[%emt 0:02:16]} 21. Kxd2 {[%emt 0:00:40]} Nf6 {[%emt 0:00:19]} 22. Bd3 {[%emt 0:00:56]} e5 {[%emt 0:09:00]} 23. dxe6 {[%emt 0:11:50]} Rxe6 {[%emt 0:04:48]} 24. Rxe6 {[%emt 0:00:40]} Bxe6 {[%emt 0:00:05]} 25. Nc7 {[%emt 0:00:13]} Re8 {[%emt 0:00:42]} 26. Nxe8+ {[%emt 0:00:26]} Nxe8 {[%emt 0:00:12]} 27. Nf3 {[%emt 0:02:18]} Kf6 {[%emt 0:00:46]} 28. Re1 {[%emt 0:01:50]} Ng7 {[%emt 0:01:18]} 29. Ke3 {[%emt 0:07:40]} h6 {[%emt 0:03:34]} 30. g3 {[%emt 0:01:12]} Ne8 {[%emt 0:05:42]} 31. Rg1 {[%emt 0:01:42]} h5 {[%emt 0:00:41]} 32. Be2 {[%emt 0:00:31]} d5 {[%emt 0:03:46]} (32... Nd8 $142 33. Ng5 Ng7) 33. cxd5 {[%emt 0:00:53]} Bxd5 {[%emt 0:00:06]} 34. Bc4 {[%emt 0:00:31]} Be4 $2 {[%emt 0:02:41]} (34... Bxc4 35. bxc4 Ned6) 35. Bxf7 {[%emt 0:00:45]} Kxf7 {[%emt 0:00:14]} 36. Ng5+ {[%emt 0:00:14] Double Attack} Kf6 {[%emt 0:00:14]} 37. Nxe4+ {[%emt 0:00:21]} fxe4 {[%emt 0:00:09]} 38. Rd1 {[%emt 0:01:41]} Ke6 {[%emt 0:00:20]} 39. Kxe4 {[%emt 0:02:06]} Nf6+ {[%emt 0:00:07]} 40. Kf3 {[%emt 0:00:19]} Nd5 {[%emt 0:00:09]} 41. g4 {[%emt 0:07:02]} hxg4+ {[%emt 0:00:16]} 42. hxg4 {[%emt 0:00:10]} Ne7 {[%emt 0:00:52]} 43. Re1+ {[%emt 0:00:53]} Kf6 {[%emt 0:00:28] [#]} 44. Rxe7 $1 {[%emt 0:00:36]} Kxe7 {[%emt 0:00:06]} 45. Ke4 {[%emt 0:00:16]} 1-0